fUSD/lending_fUSD_20240821
["ID","MTS","AMOUNT","RATE_DAILY","PERIOD"]
[335469872,1724248242283,-457.36597864,0.00013987,2]
[335469874,1724248242291,-323.33590459,0.00013987,2]
[335469876,1724248242301,-500.0,0.00013987,2]
[335469878,1724248242309,-500.0,0.00013987,2]
[335469879,1724248242325,-599.03,0.00013987,2]
[335469881,1724248242334,-500.0,0.00013987,2]
[335469884,1724248242343,-505.54,0.00013987,2]
[335469886,1724248242352,-500.0,0.00013987,2]
[335469888,1724248242361,-542.96342082,0.00013987,2]
[335469889,1724248242371,-500.0,0.00013987,2]
[335469891,1724248242380,-500.0,0.00013987,2]
[335469893,1724248242390,-500.0,0.00013987,2]
[335469895,1724248242400,-500.0,0.00013987,2]
[335469897,1724248242411,-500.0,0.00013987,2]
[335469899,1724248242420,-500.0,0.00013987,2]
[335469901,1724248242429,-500.0,0.00013987,2]
[335469903,1724248242438,-500.0,0.00013987,2]
[335469905,1724248242447,-500.0,0.00013987,2]
[335469907,1724248242457,-527.7180553,0.00013987,2]
[335469909,1724248242466,-500.0,0.00013987,2]
[335469911,1724248242475,-500.0,0.00013987,2]
[335469913,1724248242484,-500.0,0.00013987,2]
[335469915,1724248242493,-2000.0,0.00013987,2]
[335469917,1724248242501,-500.0,0.00013987,2]
[335469919,1724248242510,-289.49097335,0.00013987,2]
[335469921,1724248242525,-210.50902665,0.00013987,2]
[335469923,1724248242534,-200.0,0.00013987,2]
[335469925,1724248242543,-459.08751681,0.00013987,2]
[335469927,1724248242554,-40.91248319,0.00013987,2]
[335469929,1724248242563,-500.0,0.00013987,2]
[335469931,1724248242574,-409.98771652,0.00013987,2]
[335469970,1724248242813,-566.20228348,0.00013987,2]
[335469972,1724248242823,-3285.81,0.00013987,2]
[335469974,1724248242832,-414.1322814,0.00013987,2]
[335469976,1724248242842,-521.46772069,0.00013987,2]
[335469978,1724248242853,-518.51357319,0.00013987,2]
[335469980,1724248242863,-500.0,0.00013987,2]
[335469982,1724248242872,-559.17,0.00013987,2]
[335469984,1724248242882,-500.0,0.00013987,2]
[335469986,1724248242890,-500.0,0.00013987,2]
[335469988,1724248242899,-528.34269695,0.00013987,2]
[335469990,1724248242908,-688.83,0.00013987,2]
[335469992,1724248242917,-500.0,0.00013987,2]
[335469994,1724248242926,-500.0,0.00013987,2]
[335469996,1724248242935,-506.52588,0.00013987,2]
[335469998,1724248242944,-500.0,0.00013987,2]
[335470000,1724248242953,-500.0,0.00013987,2]
[335470002,1724248242962,-151.0,0.00013987,2]
[335470004,1724248242971,-151.0,0.00013987,2]
[335470006,1724248242980,-151.0,0.00013987,2]
[335470008,1724248242989,-243.665398,0.00013987,2]
[335470010,1724248242999,-500.0,0.00013987,2]
[335470012,1724248243008,-852.2,0.00013987,2]
[335470014,1724248243017,-500.0,0.00013987,2]
[335470015,1724248243026,-500.0,0.00013987,2]
[335470017,1724248243035,-538.48541317,0.00013987,2]
[335470019,1724248243044,-500.0,0.00013987,2]
[335470021,1724248243053,-500.0,0.00013987,2]
[335470023,1724248243062,-500.0,0.00013987,2]
[335470025,1724248243072,-500.0,0.00013987,2]
[335470027,1724248243081,-500.0,0.00013987,2]
[335470029,1724248243090,-500.0,0.00013987,2]
[335470031,1724248243099,-455.55619433,0.00013987,2]
[335470033,1724248243109,-500.0,0.00013987,2]
[335470035,1724248243118,-613.42414976,0.00013988,2]
[335470037,1724248243129,-246.67581642,0.00013988,2]
[335470038,1724248243138,-500.0,0.00013988,5]
[335470040,1724248243148,-500.0,0.00013988,2]
[335470042,1724248243157,-500.0,0.00013988,2]
[335470044,1724248243166,-500.0,0.00013988,2]
[335470046,1724248243175,-646.95922391,0.00013988,2]
[335470048,1724248243185,-503.28767235,0.00013988,2]
[335470050,1724248243193,-500.0,0.00013988,2]
[335470062,1724248243323,-500.0,0.00013988,2]
[335470063,1724248243333,-500.0,0.00013988,2]
[335470064,1724248243342,-151.0,0.00013988,2]
[335470065,1724248243351,-151.0,0.00013989,2]
[335470066,1724248243360,-1114.8053317,0.00013989,2]
[335470069,1724248243386,-1485.4638673,0.00013989,2]
[335470070,1724248244245,-594.76,0.00013989,2]
[335470071,1724248244257,-2301.8950453,0.00013989,2]
[335470072,1724248244266,-14177.1715587,0.00013989,2]
[335470073,1724248244275,-500.0,0.00013989,2]
[335470074,1724248244285,-500.0,0.00013989,2]
[335470075,1724248244294,-893.0,0.0001399,2]
[335470076,1724248244303,-150.82,0.0001399,2]
[335470077,1724248244313,-150.82,0.0001399,2]
[335470078,1724248244324,-150.82,0.0001399,2]
[335470079,1724248244333,-150.82,0.0001399,2]
[335470080,1724248244343,-150.82,0.0001399,2]
[335470081,1724248244351,-150.82,0.0001399,2]
[335470082,1724248244361,-150.82,0.0001399,2]
[335470083,1724248244370,-150.82,0.0001399,2]
[335470084,1724248244379,-1194.04088156,0.00013995,5]
[335470085,1724248244388,-6772.89194469,0.00013997,2]
[335470086,1724248244397,-151.0,0.00013998,2]
[335470087,1724248244407,-182.27904536,0.00013999,2]
[335470088,1724248244419,-500.0,0.00013999,2]
[335470089,1724248244428,-500.0,0.00013999,2]
[335470090,1724248244437,-500.0,0.00013999,2]
[335470091,1724248244446,-500.0,0.00013999,2]
[335470092,1724248244455,-500.0,0.00013999,2]
[335470093,1724248244464,-39592.51684728,0.00014,2]
[335470094,1724248244476,-353.41391248,0.00014,2]
[335470095,1724248244487,-20833.9434635,0.00014,2]
[335470118,1724248245515,-1483.23191697,0.00014,2]
[335470127,1724248245610,-31123.71429121,0.00014,2]
[335470174,1724248246340,-360.0007589,0.00014,2]
[335470175,1724248246351,-9819.29998548,0.00014,2]
[335470176,1724248246362,-296.37749459,0.00014,2]
[335470177,1724248246373,-638.75,0.00014,2]
[335470178,1724248246384,-1183.8800485,0.00014,2]
[335470179,1724248246395,-515.775044,0.00014,2]
[335470182,1724248498605,1050.0,0.0001,2]
[335470183,1724248558977,1224.2737673,0.0001,2]
[335470184,1724248634981,1224.2737673,0.0001,2]
[335470185,1724248746984,1224.2737673,0.0001,2]
[335470186,1724248809968,16247.4072914,0.0001,2]
[335470187,1724248824972,16247.4072914,0.0001,2]
[335470188,1724248845968,1224.2737673,0.0001,2]
[335470189,1724248892118,160.39,0.00010959,2]
[335470190,1724248941966,1224.2737673,0.00010959,2]
[335470191,1724249004245,299.88,0.00010773,2]
[335470192,1724249037970,1224.2737673,0.00010773,2]
[335470194,1724249132991,1224.2737673,0.00010773,2]
[335470195,1724249144586,153.76,9.88e-05,2]
[335470196,1724249150149,1224.2737673,0.00010773,2]
[335470197,1724249266997,162.13990387,0.00010773,2]
[335470200,1724249384598,-1701.53181137,0.00011336,2]
[335470220,1724249431657,-192.14261377,0.00011686,2]
[335470222,1724249431667,-150.0,0.00011786,2]
[335470223,1724249431676,-250.0,0.00012069,2]
[335470224,1724249431686,-282.51,0.00012125,2]
[335470225,1724249431696,-115.92855676,0.00012168,2]
[335470226,1724249431707,-380.96144324,0.00012168,2]
[335470227,1724249431717,-351.1399983,0.00012206,2]
[335470228,1724249431728,-648.8600017,0.00012206,2]
[335470229,1724249431738,-311.38,0.00012305,2]
[335470230,1724249431747,-221.02212964,0.00012318,2]
[335470231,1724249431770,-436.62787036,0.00012318,2]
[335470232,1724249431779,-181.27,0.00012739,2]
[335470233,1724249431788,-58.20212964,0.000129,2]
[335470234,1724249431799,-103.03808971,0.000129,2]
[335470235,1724249431808,-414.74650494,0.000129,2]
[335470236,1724249431817,-171.10846347,0.00012901,2]
[335470237,1724249431828,-775.00799848,0.00012901,2]
[335470238,1724249431839,-799.720536,0.00012901,2]
[335470239,1724249431850,-12930.06320266,0.00012901,2]
[335470240,1724249431860,-637.6377251,0.00012938,2]
[335470241,1724249431869,-784.80527793,0.00012938,2]
[335470242,1724249431879,-166.39250321,0.00012961,2]
[335470243,1724249431888,-195.81,0.00012978,2]
[335470244,1724249431897,-150.82,0.0001299,2]
[335470245,1724249431907,-150.82,0.0001299,2]
[335470246,1724249431917,-150.82,0.0001299,2]
[335470247,1724249431927,-160.95450725,0.00012997,2]
[335470248,1724249431936,-150.0,0.00012999,2]
[335470249,1724249431945,-546.0,0.00013,2]
[335470250,1724249431955,-274516.78850585,0.00013,2]
[335470251,1724249431967,-2871.78515676,0.00013,2]
[335470253,1724249431979,-1353.76120749,0.00013,2]
[335470255,1724249431991,-1533.16988502,0.00013,2]
[335470257,1724249432002,-10808.08059513,0.00013,2]
[335470260,1724249432018,-231855.65879599,0.00013,2]
[335470262,1724249432030,-955.65762198,0.00013,2]
[335470268,1724249437682,-116502.88665953,0.00013,2]
[335470270,1724249437844,-898.545,0.00013,2]
[335470271,1724249437904,-395283.82827521,0.00013,2]
[335470272,1724249437914,-1000.0,0.00013,2]
[335470273,1724249437925,-313.21,0.00013004,2]
[335470274,1724249437935,-161.2402193,0.00013035,2]
[335470275,1724249437945,-299.88,0.00013036,2]
[335470276,1724249437955,-155.0,0.00013042,2]
[335470277,1724249437964,-155.0,0.00013042,2]
[335470278,1724249437975,-155.0,0.00013042,2]
[335470279,1724249437985,-16239.30054113,0.00013058,2]
[335470280,1724249437994,-155.0,0.00013086,2]
[335470281,1724249438004,-155.0,0.00013086,2]
[335470282,1724249438014,-150.82,0.00013091,2]
[335470283,1724249438023,-173.43598897,0.00013096,2]
[335470284,1724249438033,-14675.90020057,0.00013101,2]
[335470285,1724249438044,-414.74650487,0.00013127,2]
[335470286,1724249438060,-161.2402193,0.00013169,2]
[335470288,1724249438070,-14675.90020057,0.00013301,2]
[335470290,1724249438085,-161.2402193,0.00013304,2]
[335470292,1724249438095,-500.0,0.00013321,2]
[335470294,1724249438105,-500.0,0.00013321,2]
[335470296,1724249438115,-500.0,0.00013321,2]
[335470298,1724249438124,-500.0,0.00013321,2]
[335470300,1724249438134,-500.0,0.00013321,2]
[335470302,1724249438144,-500.0,0.00013321,2]
[335470304,1724249438153,-500.0,0.00013321,2]
[335470306,1724249438162,-500.0,0.00013321,2]
[335470308,1724249438172,-500.0,0.00013321,2]
[335470310,1724249438182,-500.0,0.00013321,2]
[335470312,1724249438191,-500.0,0.00013321,2]
[335470314,1724249438201,-500.0,0.00013321,2]
[335470316,1724249438210,-500.0,0.00013321,2]
[335470318,1724249438219,-500.0,0.00013321,2]
[335470320,1724249438228,-500.0,0.00013321,2]
[335470322,1724249438238,-500.0,0.00013321,2]
[335470324,1724249438248,-500.0,0.00013321,2]
[335470326,1724249438257,-522.16,0.00013321,2]
[335470328,1724249438266,-500.0,0.00013321,2]
[335470329,1724249438276,-500.0,0.00013321,2]
[335470331,1724249438285,-500.0,0.00013321,2]
[335470333,1724249438294,-500.0,0.00013321,2]
[335470335,1724249438304,-500.0,0.00013321,2]
[335470337,1724249438314,-500.0,0.00013321,2]
[335470339,1724249438324,-500.0,0.00013321,2]
[335470341,1724249438335,-180.62,0.00013321,2]
[335470343,1724249438345,-414.74650487,0.00013354,2]
[335470345,1724249438354,-161.2402193,0.00013438,2]
[335470347,1724249438364,-11611.98995666,0.0001348,2]
[335470349,1724249438373,-1000.0,0.000135,2]
[335470351,1724249438383,-14675.90020057,0.00013501,2]
[335470353,1724249438392,-2198.87155179,0.00013573,2]
[335470355,1724249438402,-161.2402193,0.00013573,2]
[335470357,1724249438412,-1639.06917625,0.00013573,2]
[335470359,1724249438422,-199.56676815,0.00013573,2]
[335470361,1724249438431,-155.0879843,0.00013573,2]
[335470363,1724249438441,-4015.61437527,0.00013573,2]
[335470365,1724249438451,-414.74650487,0.00013581,2]
[335470367,1724249438460,-282.51,0.00013641,2]
[335470369,1724249438470,-150.82,0.0001366,2]
[335470371,1724249438480,-150.82,0.0001366,2]
[335470373,1724249438490,-150.82,0.0001366,2]
[335470375,1724249438501,-150.82,0.0001366,2]
[335470377,1724249438511,-150.82,0.0001366,2]
[335470379,1724249438520,-150.82,0.0001366,2]
[335470381,1724249438530,-150.82,0.0001366,2]
[335470383,1724249438539,-150.82,0.0001366,2]
[335470385,1724249438548,-150.82,0.0001366,2]
[335470387,1724249438558,-150.82,0.0001366,2]
[335470389,1724249438567,-150.82,0.0001366,2]
[335470391,1724249438576,-150.82,0.0001366,2]
[335470393,1724249438587,-150.82,0.0001366,2]
[335470395,1724249438596,-150.82,0.0001366,2]
[335470397,1724249438605,-150.82,0.0001366,2]
[335470399,1724249438614,-150.82,0.0001366,2]
[335470401,1724249438623,-150.82,0.0001366,2]
[335470403,1724249438633,-150.82,0.0001366,2]
[335470405,1724249438642,-150.82,0.0001366,2]
[335470407,1724249438651,-150.82,0.0001366,2]
[335470424,1724249438806,-150.82,0.0001366,2]
[335470426,1724249438820,-150.82,0.0001366,2]
[335470428,1724249438829,-150.82,0.0001366,2]
[335470430,1724249438839,-150.82,0.0001366,2]
[335470432,1724249438848,-150.82,0.0001366,2]
[335470434,1724249438858,-150.82,0.0001366,2]
[335470436,1724249438867,-150.82,0.0001366,2]
[335470438,1724249438877,-150.82,0.0001366,2]
[335470440,1724249438886,-150.82,0.0001366,2]
[335470442,1724249438896,-150.82,0.0001366,2]
[335470444,1724249438906,-150.82,0.0001366,2]
[335470446,1724249438916,-150.82,0.0001366,2]
[335470448,1724249438925,-150.82,0.0001366,2]
[335470450,1724249438934,-150.82,0.0001366,2]
[335470452,1724249438943,-150.82,0.0001366,2]
[335470454,1724249438953,-482.86352175,0.00013667,2]
[335470456,1724249438962,-387378.05005501,0.0001367,2]
[335470459,1724249438987,-784.00361734,0.0001367,2]
[335470507,1724249439459,154.95,0.00010959,2]
[335470575,1724249440091,-1800.3862206,0.0001367,2]
[335470578,1724249440102,-1598.55837767,0.0001367,2]
[335470580,1724249440113,-1500.0,0.0001367,2]
[335470586,1724249440166,-3590.83403146,0.0001367,2]
[335470588,1724249440177,-1042.1614655,0.0001367,2]
[335470605,1724249440340,-265.6,0.0001367,2]
[335470703,1724249443239,-29921.661647,0.0001367,2]
[335470704,1724249443535,-294.10704,0.0001367,2]
[335470747,1724249445894,-260.62776972,0.0001367,2]
[335470748,1724249445965,-24572.2831403,0.0001367,2]
[335470749,1724249446014,-3005.29109371,0.0001367,2]
[335470750,1724249446025,-651.65,0.0001367,2]
[335470754,1724249457638,313.0,0.000104,5]
[335470755,1724249538361,285.52,0.00010269,2]
[335470756,1724250039047,279.07,0.00010615,2]
[335470757,1724250128593,-2837.0,0.00012089,2]
[335470758,1724250169685,-292.76862131,0.00012089,2]
[335470759,1724250169704,-292.76862131,0.00012489,2]
[335470760,1724250169720,-1099.46275738,0.00012489,2]
[335470761,1724250199709,-273.29862131,0.00012489,2]
[335470762,1724250199728,-273.29862131,0.00012574,2]
[335470763,1724250199747,-7.23137869,0.00012574,2]
[335470764,1724250199756,-183.00821369,0.00012629,2]
[335470765,1724250199766,-78.163165,0.00012729,2]
[335470766,1724250235399,-171.836835,0.00012729,2]
[335470767,1724250235444,-152.17,0.00012767,2]
[335470768,1724250235838,-171.836835,0.00012775,2]
[335470769,1724250235852,-28.163165,0.00012775,2]
[335470770,1724250235864,-124.006835,0.00012879,2]
[335470771,1724250235896,-85.98633,0.00012879,2]
[335470772,1724250419453,153.06,0.00010959,2]
[335470808,1724250598837,287.2,0.00010557,2]
[335470824,1724250631972,-255.02,0.00012444,2]
[335470825,1724250631981,-654.28987856,0.0001247,2]
[335470826,1724250631992,-185.71012144,0.0001247,2]
[335470827,1724250632002,-152.17,0.00012576,2]
[335470828,1724250632016,-298.91241267,0.00012613,2]
[335470829,1724250632027,-1228.04769462,0.00012613,2]
[335470830,1724250632036,-7407.45,0.00012644,2]
[335470831,1724250632045,-200.0,0.000127,4]
[335470832,1724250632054,-500.0,0.000128,4]
[335470833,1724250632064,-287.2,0.00012821,2]
[335470834,1724250632073,-1658.46477657,0.000129,2]
[335470835,1724250632084,-378.69752343,0.000129,2]
[335470836,1724250632094,-700.0,0.000129,4]
[335470837,1724250632103,-693.4035,0.000129,2]
[335470838,1724250632112,-2500.0,0.000129,2]
[335470839,1724250632121,-362.00756249,0.000129,2]
[335470840,1724250632130,-156.36720659,0.0001294,2]
[335470841,1724250632139,-1517.42,0.0001299,2]
[335470842,1724250632148,-1492.79954643,0.0001299,2]
[335470843,1724250632159,-245.89553492,0.0001299,2]
[335470844,1724250632168,-244.26766592,0.0001299,2]
[335470845,1724250632179,-1381.95190557,0.0001299,2]
[335470846,1724250632190,-112.47550986,0.0001299,2]
[335470847,1724250632199,-318.70961982,0.00012997,2]
[335470848,1724250632210,-1715.29598454,0.00012997,2]
[335470849,1724250632232,-1339.32568212,0.00012997,2]
[335470850,1724250632243,-603.91888408,0.00012997,2]
[335470851,1724250632254,-1789.73982944,0.00012997,2]
[335470852,1724250632270,-167.25085886,0.00012997,2]
[335470853,1724250632279,-147249.08175928,0.00013,2]
[335470854,1724250632289,-315.0,0.00013,2]
[335470855,1724250632301,-6552.71303979,0.00013,2]
[335470856,1724250632314,-4036.74748476,0.00013,2]
[335470857,1724250632324,-501.23538144,0.00013,2]
[335470858,1724250632335,-2903.71306986,0.00013,2]
[335470859,1724250632347,-3421.55845167,0.00013,2]
[335470860,1724250632358,-725.47357814,0.00013,2]
[335470861,1724250632403,-794.40933284,0.00013,2]
[335470862,1724250632420,-359.13922506,0.00013,2]
[335470863,1724250632434,-376.37542403,0.00013,2]
[335470864,1724250632445,-474.46635641,0.00013,2]
[335470865,1724250632456,-447.53187127,0.00013,2]
[335470866,1724250632467,-12534.42944718,0.00013,2]
[335470867,1724250632525,-569.99999994,0.00013,2]
[335470868,1724250632536,-351.899999,0.00013,2]
[335470869,1724250632548,-605.75063581,0.00013,2]
[335470870,1724250632558,-4114.08125678,0.00013,2]
[335470872,1724250637869,-785.23100942,0.000129,2]
[335470873,1724250637915,-845.302431,0.000129,2]
[335470874,1724250637926,-6470.20833297,0.000129,2]
[335470875,1724250637936,-421.399227,0.000129,2]
[335470876,1724250637961,-1019.83248483,0.000129,2]
[335470877,1724250637973,-1982.40720912,0.000129,2]
[335470878,1724250637982,-193.84378897,0.00012966,2]
[335470879,1724250637991,-818701.96952704,0.00013,2]
[335470880,1724250638002,-262650.62789288,0.00013,2]
[335470881,1724250638013,-1068.34106187,0.00013,2]
[335470882,1724250638027,-5340.98495427,0.00013,2]
[335470883,1724250638038,-338.26352533,0.00013,2]
[335470891,1724250638282,-315.94706267,0.00013,2]
[335470893,1724250638294,-509.16789362,0.00013,2]
[335470896,1724250638310,-2013.39033,0.00013,2]
[335470898,1724250638322,-6016.27157419,0.00013,2]
[335470900,1724250638333,-2506.77543946,0.00013,2]
[335470902,1724250638344,-2604.69232305,0.00013,2]
[335470904,1724250638356,-7969.17193469,0.00013,2]
[335470906,1724250638368,-3458.69314524,0.00013,2]
[335470908,1724250638379,-60200.48900671,0.00013,2]
[335470911,1724250638396,-462.45588772,0.00013,2]
[335470913,1724250638407,-264.54053448,0.00013,2]
[335470915,1724250638419,-7780.6528194,0.00013,2]
[335470917,1724250638430,-28740.04165578,0.00013,2]
[335470920,1724250638447,-6525.06999584,0.00013,2]
[335470922,1724250638458,-7214.73959698,0.00013,2]
[335470924,1724250638469,-1145.08013776,0.00013,2]
[335470926,1724250638480,-14798.35396183,0.00013,2]
[335470928,1724250638491,-11216.25702667,0.00013,2]
[335470930,1724250638505,-20570.8866,0.00013,2]
[335470994,1724250640107,-74552.61056066,0.00013,2]
[335470995,1724250640118,-476.45777715,0.00013,2]
[335470996,1724250640130,-6678.40024662,0.00013,2]
[335470997,1724250640161,-844.59940527,0.00013,2]
[335470998,1724250640304,-306657.44249202,0.00013,2]
[335470999,1724250640313,-1333.13,0.00013,2]
[335471000,1724250640323,-155.0,0.00013001,2]
[335471001,1724250640332,-11524.38069428,0.00013041,2]
[335471002,1724250640341,-365.50885499,0.00013052,2]
[335471003,1724250640350,-362.00756247,0.00013086,2]
[335471004,1724250640359,-357.73093582,0.00013086,2]
[335471005,1724250640369,-582.75750987,0.000135,2]
[335471006,1724250640378,-1000.0,0.000135,4]
[335471007,1724250640387,-4644.06375209,0.0001354,2]
[335471008,1724250640396,-9070.0069,0.0001357,2]
[335471009,1724250640405,-155.31997098,0.0001357,2]
[335471010,1724250640414,-164.46104346,0.0001357,2]
[335471011,1724250640423,-384.94232682,0.0001357,2]
[335471012,1724250640433,-1990.4655931,0.0001357,2]
[335471013,1724250640442,-380.91033674,0.0001357,2]
[335471014,1724250640451,-1200.0,0.000136,4]
[335471015,1724250640460,-1738.69508135,0.0001366,2]
[335471016,1724250640469,-185.8008886,0.00013663,2]
[335471017,1724250640479,-10126.9201145,0.00013663,2]
[335471018,1724250640488,-26249.4966483,0.00013663,2]
[335471019,1724250640497,-86393.6196425,0.00013668,2]
[335471020,1724250640507,-494.82037597,0.00013668,2]
[335471021,1724250640516,-996.92936278,0.00013668,2]
[335471022,1724250640529,-8450.62020728,0.0001367,2]
[335471023,1724250640541,-135.94979272,0.0001367,2]
[335471024,1724250640550,-1178.28581868,0.0001367,2]
[335471025,1724250640562,-2303.5,0.0001367,2]
[335471026,1724250640573,-578.06080476,0.0001367,2]
[335471027,1724250640591,-1663.5002,0.0001367,2]
[335471028,1724250640603,-889.49999995,0.0001367,2]
[335471029,1724250640614,-714.85,0.0001367,2]
[335471030,1724250640625,-400.075,0.0001367,2]
[335471031,1724250640636,-466.116,0.0001367,2]
[335471032,1724250640651,-59377.57373107,0.0001367,2]
[335471033,1724250640664,-391.24,0.0001367,2]
[335471034,1724250640675,-1986.34492326,0.0001367,2]
[335471035,1724250640699,-304.33735203,0.00013272,2]
[335471081,1724250643079,-1196.2,0.00013182,2]
[335471082,1724250643227,-10328.18069428,0.00013182,2]
[335471083,1724250643238,-57.67021044,0.00013272,2]
[335471084,1724250643247,-13507.34909528,0.0001367,2]
[335471085,1724250643273,-778.38443432,0.0001367,2]
[335471086,1724250643285,-4592.25873517,0.0001367,2]
[335471087,1724250644231,-3032.38461368,0.0001367,2]
[335471096,1724250645927,-362.00756247,0.00013458,2]
[335471097,1724250645937,-968.51347068,0.0001367,2]
[335471098,1724250645948,-1298.2914,0.0001367,2]
[335471099,1724250645971,-2175.57136045,0.0001367,2]
[335471100,1724250645983,-757.51537998,0.0001367,2]
[335471101,1724250645994,-655.025,0.0001367,2]
[335471102,1724250646006,-401.98957859,0.0001367,2]
[335471133,1724251832057,-497.48514,0.00010097,2]
[335471134,1724251832167,-2198.43921199,0.00010097,2]
[335471135,1724251832177,-197.0,0.00010564,2]
[335471136,1724251832187,-327.9672,0.00010878,2]
[335471137,1724251832196,-159.22,0.00010959,2]
[335471138,1724251832206,-300.0,0.00010998,2]
[335471139,1724251832216,-9275.57361174,0.00010999,2]
[335471140,1724251832225,-152.18,0.00012027,2]
[335471141,1724251832235,-255.02,0.00012078,2]
[335471142,1724251832244,-436.59997627,0.00012078,2]
[335471143,1724251832256,-854.16488114,0.00012078,2]
[335471144,1724251832268,-595.63513767,0.00012078,2]
[335471145,1724251832283,-1132.38722525,0.00012078,2]
[335471146,1724251832302,-835.76890851,0.00012078,2]
[335471147,1724251832314,-2739.15387116,0.00012078,2]
[335471148,1724251832324,-420.0,0.00012086,2]
[335471149,1724251832333,-328.0,0.00012152,2]
[335471150,1724251832343,-6821.37,0.00012164,2]
[335471151,1724251832354,-179.99,0.00012164,2]
[335471152,1724251832364,-672.0,0.00012313,2]
[335471153,1724251832373,-790.69,0.00012441,2]
[335471154,1724251832383,-421.43,0.00012441,2]
[335471155,1724251832392,-181.27,0.0001247,2]
[335471156,1724251832402,-150.0,0.00012591,2]
[335471157,1724251832412,-169.5,0.00012591,2]
[335471158,1724251832422,-299.99,0.00012591,2]
[335471159,1724251832432,-500.0,0.00012591,2]
[335471160,1724251832442,-499.99,0.00012592,2]
[335471161,1724251832453,-1742.54,0.00012592,2]
[335471162,1724251832464,-790.69,0.00012641,2]
[335471163,1724251832473,-181.26,0.00012808,2]
[335471164,1724251832483,-218.51,0.00012817,2]
[335471165,1724251832492,-7730.6459,0.000129,2]
[335471166,1724251832503,-7461.5269,0.000129,2]
[335471167,1724251832513,-156.36720659,0.0001294,2]
[335471168,1724251832522,-16831.2204409,0.00013047,2]
[335471169,1724251832532,-531.26864504,0.00013052,2]
[335471170,1724251832542,-421.43,0.00013057,2]
[335471171,1724251832551,-421.43,0.00013057,2]
[335471172,1724251832561,-790.69,0.00013057,2]
[335471173,1724251832571,-790.69,0.00013057,2]
[335471174,1724251832581,-421.43,0.00013057,2]
[335471175,1724251832590,-790.69,0.00013057,2]
[335471176,1724251832600,-421.43,0.00013057,2]
[335471177,1724251832610,-790.69,0.00013057,2]
[335471178,1724251832619,-421.43,0.00013057,2]
[335471179,1724251832628,-421.43,0.00013057,2]
[335471180,1724251832638,-421.43,0.00013057,2]
[335471181,1724251832648,-421.43,0.00013057,2]
[335471182,1724251832659,-421.43,0.00013057,2]
[335471183,1724251832671,-421.43,0.00013057,2]
[335471184,1724251832681,-421.43,0.00013057,2]
[335471185,1724251832707,-158.33,0.00013057,2]
[335471186,1724251832717,-421.36,0.00013057,2]
[335471187,1724251832726,-155.0,0.00013086,2]
[335471188,1724251832735,-421.43,0.000131,2]
[335471189,1724251832746,-421.43,0.000131,2]
[335471190,1724251832756,-790.69,0.000131,2]
[335471191,1724251832766,-348.0,0.00013281,2]
[335471192,1724251832776,-168.26330187,0.0001357,2]
[335471193,1724251832785,-158.56744269,0.0001357,2]
[335471194,1724251832794,-329.95056588,0.0001357,2]
[335471195,1724251832804,-166.39250321,0.0001357,2]
[335471196,1724251832814,-8067.06648605,0.0001357,2]
[335471197,1724251832824,-1676.6778789,0.0001357,2]
[335471198,1724251832833,-306.31409133,0.0001357,2]
[335471199,1724251832844,-6366.71481731,0.0001357,2]
[335471200,1724251832854,-1148.82194674,0.0001357,2]
[335471201,1724251832864,-1077.59402565,0.0001357,2]
[335471202,1724251832873,-7500.0,0.0001357,2]
[335471203,1724251832883,-1414.61742938,0.0001366,2]